Cogmind - Beta 9.4 @@@ ROGUE MODE // 2020.02.08 @ 12:16:44 Player: Zailor Result: Destroyed by YI-UF0 with YI-UF0's Doublenader Performance ------------- Evolutions (1) 500 Regions Visited (3) 600 Robots Destroyed (9) 45 Value Destroyed (224) 224 Prototype IDs (0) 0 Alien Tech Used (0) 0 Bonus (0) 0 TOTAL SCORE: 1369 Bonus ------- None Cogmind --------- Core Integrity 0/400 Matter 260/300 Energy 100/100 System Corruption 0% Temperature Cool (0) Movement Core (100) Ox1 Location -9/Mines Parts ------- > --- POWER (1) -------- (None) > --- PROPULSION (2) --- (None) > --- UTILITY (4) ------ Signal Interpreter > --- WEAPON (2) ------- Mini Grenade Launcher Heavy Hammer > --- INVENTORY (4) ---- Light Deuterium Engine Improved Light Armor Plating Grenade Launcher Peak State ------------ > --- POWER ------------ Improved Ion Engine > --- PROPULSION ------- Aluminum Leg Aluminum Leg > --- UTILITY ---------- Large Storage Unit High-capacity Storage Unit Improved Light Armor Plating Improved Light Armor Plating > --- WEAPON ----------- Assault Rifle Light Assault Rifle > --- INVENTORY -------- Light Deuterium Engine Light Deuterium Engine Aluminum Leg Aluminum Leg Heat Sink Medium Storage Unit Large Matter Pod Improved Light Armor Plating Improved Light Armor Plating Assault Rifle Assault Rifle Light Assault Rifle Heavy Assault Rifle Assault Cannon Assault Cannon Flail [Rating: 17] Favorites ----------- Power Ion Engine Engine Ion Engine Propulsion Aluminum Leg Treads Light Treads Leg Aluminum Leg Utility Improved Light Armor Plating Storage High-capacity Storage Unit Processor Signal Interpreter Protection Improved Light Armor Plating Weapon Assault Rifle Ballistic Gun Assault Rifle Launcher Mini Grenade Launcher Impact Weapon Heavy Hammer Build | -11 -10 -9 -9 ------- Run | Scr Mat Mat Min Slots Evolved 2 | . . 2 . Power . | . . . . Propulsion . | . . . . Utility 2 | . . 2 . Weapon . | . . . . Parts Attached 19 | 6 1 7 5 Power 3 | 1 . 1 1 Engine 3 | 1 . 1 1 Core . | . . . . Reactor . | . . . . Propulsion 4 | 2 . 2 . Treads 2 | . . 2 . Leg 2 | 2 . . . Wheel . | . . . . Hover . | . . . . Flight . | . . . . Utility 7 | 1 1 4 1 Device . | . . . . Storage 4 | 1 1 2 . Processor 1 | . . . 1 Hackware . | . . . . Protection 2 | . . 2 . Artifact . | . . . . Weapon 5 | 2 . . 3 Energy Gun . | . . . . Energy Cannon . | . . . . Ballistic Gun 3 | 2 . . 1 Ballistic Cannon . | . . . . Launcher 1 | . . . 1 Special Weapon . | . . . . Impact Weapon 1 | . . . 1 Slashing Weapon . | . . . . Piercing Weapon . | . . . . Special Melee Weapon . | . . . . Unidentified Prototypes . | . . . . Parts Lost 5 | . . 1 4 Power 2 | . . 1 1 Propulsion 1 | . . . 1 Utility 1 | . . . 1 Weapon 1 | . . . 1 Highest Loss Streak 4 | . . 1 4 Average Slot Usage (%) 91 | . 97 99 55 Engine 10 | . 14 10 4 Treads 2 | . . 1 9 Leg 18 | . 28 20 . Storage 21 | . 26 22 10 Processor 1 | . . . 5 Protection 14 | . . 21 10 Ballistic Gun 21 | . 28 22 9 Naked Turns . | . . . . Heaviest Build 64 | 12 44 64 64 Greatest Support 40 | 20 20 40 40 Greatest Overweight (x) 21 | 2 2 21 3 Average Overweight (x) 1 | . 1 2 . Largest Inventory Capacity 18 | 6 14 18 18 Average Capacity 13 | 5 12 15 10 Most Carried 18 | 4 7 18 18 Average Carried 10 | 2 4 13 10 Final Capacity 18 | 6 14 18 4 Final Carried 18 | 4 7 18 3 Class Distribution -------------------- 100% | Mutant Dominant Class ---------------- Mutant | -10/Materials Mutant | -9/Materials Mutant | -9/Mines Resources | -11 -10 -9 -9 ----------- Run | Scr Mat Mat Min Matter Collected 648 | 272 40 260 76 Remotely . | . . . . Salvage Created 424 | 84 40 300 . Parts 23 | 1 7 15 . Haulers Intercepted . | . . . . Recyclers Shooed 2 | . 1 1 . Parts Field Recycled . | . . . . Retrieved Matter . | . . . . Parts Self-Destructed . | . . . . Prevented . | . . . . Kills | -11 -10 -9 -9 ------- Run | Scr Mat Mat Min Combat Hostiles Destroyed 7 | . 3 4 . Guns 7 | . 3 4 . Classes Destroyed 4 | 1 1 2 . Recycler 2 | 1 . 1 . Swarmer 3 | . 3 . . Grunt 1 | . . 1 . Sentry 3 | . . 3 . Best Kill Streak 2 | 1 2 2 . Combat Bots Only 2 | . 2 2 . Max Kills in Single Turn 2 | 1 2 1 . Gunslinging 1 | . 1 . . Exploded . | . . . . Melee . | . . . . Uniques/NPCs Destroyed . | . . . . Combat | -11 -10 -9 -9 -------- Run | Scr Mat Mat Min Damage Taken 1446 | . 56 467 923 Core 420 | . 7 58 355 Absorbed by Shields . | . . . . Core Remaining (%) 98 | 100 97 . . Volleys Fired 50 | 3 8 32 7 Largest 2 | 2 2 2 2 Hottest 40 | 40 40 40 40 Shots Fired 96 | 6 16 64 10 Gun 93 | 6 16 64 7 Cannon . | . . . . Launcher 3 | . . . 3 Special . | . . . . Kinetic 93 | 6 16 64 7 Thermal . | . . . . Explosive 3 | . . . 3 Electromagnetic . | . . . . Robot Hit Streak 14 | 2 7 14 4 Robot Miss Streak 3 | 1 3 1 1 Penetration Max . | . . . . Secondary Targets 1 | . 1 . . Max Gunslinging Chain 1 | . 1 . . Shots Hit Robots 71 | 4 10 50 7 Core Hits 21 | 1 4 13 3 Critical Hits 2 | . . 2 . Critical Kills 1 | . . 1 . Critical Parts Destroyed . | . . . . Melee Attacks . | . . . . Impact . | . . . . Slashing . | . . . . Piercing . | . . . . Sneak Attacks . | . . . . Combat Hostiles . | . . . . Follow-up Attacks . | . . . . Damage Inflicted 765 | 41 94 540 90 Guns 733 | 41 94 540 58 Cannons . | . . . . Explosions 32 | . . . 32 Melee . | . . . . Ramming . | . . . . Kinetic 733 | 41 94 540 58 Thermal . | . . . . Explosive 32 | . . . 32 Electromagnetic . | . . . . Impact . | . . . . Slashing . | . . . . Piercing . | . . . . Highest Corruption . | . . . . Average Corruption . | . . . . Corruption Purged . | . . . . Overload Shots . | . . . . Overflow Damage . | . . . . Projectiles . | . . . . Explosions . | . . . . Melee . | . . . . Knockbacks . | . . . . Impact . | . . . . Kinetic . | . . . . Secondary . | . . . . Self-Inflicted Damage . | . . . . Shots . | . . . . Rammed . | . . . . Targets Rammed . | . . . . Kicked . | . . . . Crushed . | . . . . Highest Temperature 35 | . . 22 35 Average Temperature 6 | . . 4 13 Received Heat Transfer 363 | . . 150 213 Siege Activations . | . . . . Robots Corrupted . | . . . . Combat Hostiles . | . . . . Parts Fried . | . . . . Impact Corruptions . | . . . . Robots Melted . | . . . . Combat Hostiles . | . . . . Parts Melted . | . . . . Heat Transferred . | . . . . Parts Sabotaged . | . . . . Parts Stolen . | . . . . Parts Stripped . | . . . . Power Chain Reactions . | . . . . Missiles Intercepted . | . . . . Alert | -11 -10 -9 -9 ------- Run | Scr Mat Mat Min Peak Influence 133 | 5 133 120 19 Average Influence 56 | 2 79 65 8 Maximum Alert Level . | . . . . Low Security (%) 100 | 100 100 100 100 Level 1 . | . . . . Level 2 . | . . . . Level 3 . | . . . . Level 4 . | . . . . Level 5 . | . . . . High Security . | . . . . Max Security . | . . . . Squads Dispatched 2 | . 2 . . Investigation . | . . . . Extermination . | . . . . Reinforcement 2 | . 2 . . Assault . | . . . . Garrison . | . . . . Intercept . | . . . . Construction Impeded . | . . . . Haulers Reinforced . | . . . . Stealth | -11 -10 -9 -9 --------- Run | Scr Mat Mat Min Distress Signals 3 | . 1 2 . Communications Jammed . | . . . . Distress Signals . | . . . . Times Spotted 33 | . 8 9 16 Peak Tracking Total 8 | . 4 3 8 Tactical Retreats 6 | . . 4 2 Traps | -11 -10 -9 -9 ------- Run | Scr Mat Mat Min Traps Triggered . | . . . . Indirectly . | . . . . Trap Hack Attempts . | . . . . Triggered . | . . . . Disarmed . | . . . . Reprogrammed . | . . . . Reused . | . . . . Traps Extracted . | . . . . Installed . | . . . . Triggered . | . . . . Machines | -11 -10 -9 -9 ---------- Run | Scr Mat Mat Min Machines Disabled . | . . . . Max in Single Turn . | . . . . Machines Sabotaged . | . . . . Garrisons Compromised . | . . . . Overloaded Fab Kills . | . . . . Fab Network Shutdowns . | . . . . Hacking | -11 -10 -9 -9 --------- Run | Scr Mat Mat Min Machines Accessed 2 | . 1 1 . Terminals 2 | . 1 1 . Fabricators . | . . . . Repair Stations . | . . . . Recycling Units . | . . . . Scanalyzers . | . . . . Garrison Access . | . . . . Total Hacks 3 | . 1 2 . Successful 1 | . . 1 . Failed 2 | . 1 1 . Catastrophic 1 | . 1 . . Database Lockouts . | . . . . Manual 3 | . 1 2 . Terminals 3 | . 1 2 . Fabricators . | . . . . Repair Stations . | . . . . Recycling Units . | . . . . Scanalyzers . | . . . . Garrison Access . | . . . . Terminal Hacks . | . . . . Fabricator Hacks . | . . . . Repair Station Hacks . | . . . . Recycling Unit Hacks . | . . . . Scanalyzer . | . . . . Garrison Access Hacks . | . . . . Unauthorized Hacks 2 | . . 2 . Terminals 1 | . . 1 . Track 1 | . . 1 . Fabricators . | . . . . Repair Stations . | . . . . Recycling Units . | . . . . Scanalyzers . | . . . . Garrison Access . | . . . . Data Cores Recovered . | . . . . Used . | . . . . Hacking Detections 2 | . 1 1 . Full Trace Events . | . . . . Feedback Events . | . . . . Feedback Blocked . | . . . . Robot Schematics Acquired . | . . . . Robots Built . | . . . . Matter . | . . . . Time . | . . . . Total Robot Build Rating . | . . . . Part Schematics Acquired . | . . . . Parts Built . | . . . . Matter . | . . . . Time . | . . . . Total Part Build Rating . | . . . . Parts Repaired . | . . . . Time . | . . . . Parts Recycled . | . . . . Recycled Matter . | . . . . Retrieved Matter . | . . . . Retrieved Components . | . . . . Parts Scanalyzed . | . . . . Part Schematics Acquired . | . . . . Parts Damaged . | . . . . Bothacking | -11 -10 -9 -9 ------------ Run | Scr Mat Mat Min Used RIF Installer . | . . . . Robots Hacked . | . . . . Non-combat . | . . . . Combat . | . . . . Robot Hacks Applied . | . . . . Relay Couplers Released . | . . . . Robots Rewired . | . . . . Allies Hacked . | . . . . Hacks Repelled . | . . . . Allies | -11 -10 -9 -9 -------- Run | Scr Mat Mat Min Total Allies 3 | . . . 3 Largest Group 3 | . . . 3 Highest-Rated Group 40 | . . . 40 Highest-Rated Ally 16 | . . . 16 Total Orders . | . . . . Ally Attacks 1 | . . . 1 Total Damage 15 | . . . 15 Kills . | . . . . Allies Corrupted . | . . . . Allies Melted . | . . . . Intel | -11 -10 -9 -9 ------- Run | Scr Mat Mat Min Robot Analysis Total . | . . . . Derelict Logs Recovered 1 | . . . 1 Drone Launches . | . . . . Drone Recoveries . | . . . . Exploration | -11 -10 -9 -9 ------------- Run | Scr Mat Mat Min Turns Passed 1141 | 68 279 607 187 Spaces Moved 634 | 40 149 246 199 Core 173 | 7 . 1 165 Treads 57 | . . 23 34 Legs 404 | 33 149 222 . Wheels . | . . . . Hover . | . . . . Flight . | . . . . Fastest Speed 50 | 50 120 180 50 Average Speed 143 | 117 167 187 74 Slowest Speed 1100 | 150 180 1100 220 Overloaded Moves . | . . . . Propulsion Burnouts . | . . . . Robots Hopped . | . . . . Cave-ins Triggered . | . . . . Exploration Rate (%) 30 | 3 44 24 50 Regions Visited 3 Branch Regions 1 Pre-discovered Areas . | . . . . Known Exits Taken . | . . . . Unknown Exits Taken 3 | 1 1 1 . Scrap Searched 3 | . . . 3 Spaces Dug . | . . . . Terrain Destroyed 13 | . . . 13 Melee . | . . . . Projectile . | . . . . AOE 13 | . . . 13 Actions | -11 -10 -9 -9 --------- Run | Scr Mat Mat Min Total 782 | 52 164 335 231 Wait 43 | . 3 31 9 Move 631 | 39 148 245 199 Hop . | . . . . Pick Up 24 | 4 4 13 3 Fast Attach 12 | 6 . 5 1 Attach 4 | . 1 . 3 Detach 2 | . . 1 1 Swap 3 | . . 2 1 Drop 13 | . . 6 7 Fire 50 | 3 8 32 7 Melee . | . . . . Ram . | . . . . Kick . | . . . . Crush . | . . . . Escape Stasis . | . . . . Rewire . | . . . . Trap . | . . . . Miscellaneous . | . . . . Route ------- -11/Scrapyard -10/Materials -9/Materials -9/Mines History --------- Turn | Location | Event 8 | -11/Scrapyard | Discovered new exit (range 15) 69 | -11/Scrapyard | Entered Materials 315 | -10/Materials | Discovered new exit (range 6) 317 | -10/Materials | Build established: Mutant 348 | -10/Materials | Entered another Materials area 348 | -9/Materials | Evolved 2 slots: Utility x2 928 | -9/Materials | Discovered new exit (range 15) 955 | -9/Materials | Entered Mines 994 | -9/Mines | Assembled infested the area 1066 | -9/Mines | Learned Materials garrison access intel 1076 | -9/Mines | Lost 4 parts (1p1n1u1w) 1079 | -9/Mines | Assisted by bots powering up and referring to "LRC-V3" 1093 | -9/Mines | Assisted by bots powering up and referring to "LRC-V3" 1129 | -9/Mines | Core integrity fell below 50% 1139 | -9/Mines | Core integrity fell below 20% 1142 | -9/Mines | Destroyed by YI-UF0 with YI-UF0's Doublenader Last Messages --------------- 01065_ Searching scrap... 01065_ Found 36 Matter. 01065_ Found Imp. Terrain Scanner. 01065_ Found Lgt. Ion Engine. 01066_ Acquired derelict log, extracted data. Data stored: Materials garrison access intel. 01068_ Acquired 35 matter. 01074_ T-07 Excavator is excavating. 01079_ YI-UF0 nonchalantly drops a Grenade Launcher on the ground. 01079_ Dropped Lgt. Assault Rifle. 01080_ Acquired Grenade Launcher. 01084_ YI-UF0 mumbles something. 01093_ Trooper 2a: "Hello LRC-V3. What is your command?" 01093_ Mercenary 2a: "Hello LRC-V3. What is your command?" 01093_ Trooper 2b: "Hello LRC-V3. What is your command?" 01131_ The unstable cave ceiling collapses. 01132_ YI-UF0 mumbles something. 01136_ The unstable cave ceiling collapses. 01140_ YI-UF0: "KABOOM!" 01140_ Mercenary 2a destroyed. Map ----- +----------------------------------------------------+ | | | | | | | | | | | | | | | | | | | | | | | | | | | | | | | | | | | | | ????####?##????????????????????????? | | ????# # # ????????????????????????? | | ????# ##???????????????????????? | | ????# #???????????????????????? | | ????# ##??????????????????????? | | ??### ##??????????????????#### | | ??# #??????????????????# | | ??# @ #################### ## | | ?## g #? | | ?# g##################### #? | | ?# #???????????????????# | | # #???????????????????# ## | | # #??????????????????# ? | | ## ###?????????????????? ? | | ?## #?????????????????? ? | | ??# #?????????????????? ? | | ??#### #?????????????????? ? | | ?????# g #?????????????????? #? | | ????? = #?????????????????? ?? | | ????? #????????????????? ?? | | ????### #????????????????? ?? | | ?????? #????????????????? ?? | | ?????? ##????????????????? ?? | | ??????# ###?????????????????????? | | ?????## #?????????????????????? | | ?????# ###?????????##?????????? | | ?????## ##??????? #?????????? | | ??????## #??????? ??????????? | | ????????## #?????? #??????????? | | ?????????## ##????? #???????????? | | ??????????# #????? #???????????? | | ??????????# ##???? ##??????????? | +----------------------------------------------------+ Best States ------------- Heat Dissipation 28 Energy Generation 12 Energy Capacity 265 Matter Stores 300 Matter Capacity 300 Sight Range 16 Terrain Scan Density 10 Armor Coverage 300 Evasion (%) 50 Recoil Reduction 2 Item Schematics ----------------- None Robot Schematics ------------------ None Fabricated ------------ Nothing Alien Tech Used ----------------- None Achievements -------------- None Challenges ------------ None Game ------ Seed CoolingAngularCleaver Manual? 0 Play Time 00:12:08 Cumulative 77.1 hours Start 2020.02.08 @ 12:05:54 End 2020.02.08 @ 12:16:44 Sessions 1 Manual Loads 0 Difficulty Rogue Special Mode None Game No. 80 Rogue 80 Adventurer 0 Explorer 0 Win Type - Total 0 Types 0/0/0/0/0/0/0 Lore% 48 Gallery% 53 Achievement% 40 Wizard Run 0 Options --------- ASCII 0 Keyboard 1 Movement Vi Keybinds 0 Fullscreen 1 Font 18/X11 Map View 76x50 Tactical HUD 1 Map Filters NONE Filters NONE Steam 1 RUN: 257f2a4e-d0ce-45a5-8e9f-87aa773d9c2b